[Event "Sardinia World Festival-A 2024"]
[Site "Orosei"]
[Date "2024.04.30"]
[Round "4.31"]
[White "Vergara Anton, Diego"]
[Black "Nurgaliyeva, Zarina"]
[Result "1-0"]
[ECO "A13"]
[WhiteElo "2387"]
[BlackElo "2109"]
[Annotator "TA"]
[PlyCount "143"]
[EventDate "2024.04.26"]
[EventType "swiss"]
[EventCountry "ITA"]
[SourceTitle "playchess.com"]
[Source "ChessBase"]
[SourceQuality "1"]
[TimeControl "40/5400+30:1800+30"]

{[%evp 54,143,239,234,350,345,303,187,176,191,183,189,366,361,468,179,830,552,576,579,514,401,381,393,519,343,29970,356,339,346,649,250,243,208,207,201,239,235,222,158,156,0,222,213,234,211,217,185,239,234,245,236,302,322,318,316,296,286,290,249,237,237,252,227,232,222,316,255,261,268,269,269,359,319,430,418,560,566,554,541,552,539,510,495,29974,29976,29988,29981,29981,29982,29990,29991]} 1. Nf3 {[%emt 0:00:06]} d5 {[%emt 0:00:15]} 2. e3 {[%emt 0:00:10]} Nf6 {[%emt 0:01:13]} 3. c4 {[%emt 0:00:13]} e6 {[%emt 0:00:35]} 4. Nc3 {[%emt 0:00:20]} Be7 {[%emt 0:02:39]} 5. b3 {[%emt 0:01:26]} O-O {[%emt 0:01:38]} 6. Bb2 {[%emt 0:00:10]} b6 {[%emt 0:01:41]} 7. cxd5 {[%emt 0:00:46] A13: English Opening: 1...e6.} exd5 {[%emt 0:00:49]} 8. d4 {[%emt 0:00:10]} c5 {[%emt 0:01:34]} 9. Bd3 {[%emt 0:00:37]} Nc6 {[%emt 0:04:59] 9...Bb7 is vanishing.} 10. dxc5 {[%emt 0:01:57]} bxc5 {[%emt 0:00:44]} 11. O-O {[%emt 0:00:49]} h6 {[%emt 0:12:32]} 12. Rc1 {[%emt 0:01:53]} Be6 $146 {[%emt 0:10:30]} ({Predecessor:} 12... Nb4 13. Bb1 Bg4 14. h3 Bh5 15. a3 Nc6 16. Na4 Na5 17. Nxc5 Bxf3 18. Qxf3 Bxc5 19. Rxc5 Nxb3 20. Bxf6 Qxf6 21. Qxf6 gxf6 22. Rxd5 {1-0 Baliuniene,M (1897)-Steingrimsson,K (1664) Reykjavik op 2017 (4)}) 13. Na4 {[%emt 0:00:58]} Nd7 {[%emt 0:00:56]} 14. Bb1 {[%emt 0:09:13]} Rc8 {[%emt 0:05:31]} 15. Qd3 {[%emt 0:01:03]} f5 {[%emt 0:02:43]} 16. Rfd1 {[%emt 0:04:04]} Qc7 {[%emt 0:04:45]} 17. Qe2 {[%emt 0:03:39]} Bd6 {[%emt 0:05:08]} 18. h3 {[%emt 0:05:08]} Qb8 {[%emt 0:03:31]} 19. Nc3 {[%emt 0:07:14]} Nf6 {[%emt 0:05:16]} 20. Nb5 {[%emt 0:01:57]} Ne4 {[%emt 0:06:45]} 21. Nxd6 {[%emt 0:03:41]} Qxd6 {[%emt 0:00:20]} 22. Ba3 {[%emt 0:02:15]} Nd8 {[%emt 0:04:38]} 23. Bd3 {[%emt 0:05:19]} Qb6 {[%emt 0:02:47]} 24. Ne5 {[%emt 0:06:53]} Nb7 {[%emt 0:05:16]} 25. Ng6 {[%emt 0:01:59]} Rf7 {[%emt 0:00:57]} 26. Nf4 {[%emt 0:02:52]} g5 {[%emt 0:04:50]} 27. Nh5 {[%emt 0:02:14]} Nf6 {[%emt 0:02:20]} (27... Rcf8 {was worth a try.} 28. Bb2 Qc7) 28. Bb2 $18 {[%emt 0:00:48]} Nxh5 {[%emt 0:01:06]} (28... Nd7 $142 29. Bb5 Qd6) 29. Qxh5 $18 {[%emt 0:00:03]} Kh7 {[%emt 0:00:21]} 30. h4 {[%emt 0:08:22]} Rg8 {[%emt 0:00:46]} 31. hxg5 {[%emt 0:00:23]} Rxg5 {[%emt 0:00:15]} 32. Qh2 {[%emt 0:00:08]} d4 $2 {[%emt 0:06:05]} (32... Nd6 33. f3 Rd7) 33. exd4 $18 {[%emt 0:01:33]} Bd5 {[%emt 0:00:26]} 34. dxc5 $2 {[%emt 0:01:11]} (34. Qe5 Rxg2+ 35. Kf1) 34... Qc6 $2 {[%emt 0:02:04]} (34... Nxc5 35. Bf1 f4) 35. Bf1 {[%emt 0:00:36]} f4 {[%emt 0:00:29]} 36. Rxd5 {[%emt 0:04:08]} Rxd5 {[%emt 0:00:55]} 37. Bc4 {[%emt 0:01:43]} Nxc5 {[%emt 0:00:46]} 38. Qh3 {[%emt 0:02:09]} (38. Bxd5 Qxd5 39. Qh3 Nd3 $18) 38... Ne4 {[%emt 0:00:52]} 39. Bd3 {[%emt 0:01:33]} Qg6 $2 {[%emt 0:00:31]} (39... Rxd3 $18 40. Qxd3 (40. Rxc6 Rxh3 41. gxh3 Rf8 $18) 40... Rd7) 40. Rc4 $2 {[%emt 0:02:03]} (40. Qc8 {mates} Rg7 41. Bxg7 Kxg7 42. Rc7+ Qf7 43. Bxe4 (43. Rxf7+ Kxf7 44. Bxe4 Rd1+ 45. Kh2 Rd6 $18) 43... Rd1+ 44. Kh2 Qxc7 45. Qxc7+ Kf6 46. Bf3 (46. Qxa7 Ke6 $18)) 40... Rxd3 $18 {[%emt 0:00:31]} 41. Qxd3 {[%emt 0:30:07]} Ng5 $2 {[%emt 0:30:14]} (41... Nf6 42. Qxg6+ Kxg6 43. Rxf4 Nd5) 42. Qxg6+ $2 {[%emt 0:00:43]} (42. Qc3 {[%csl Gb2][%cal Rc3h8]} Qb1+ 43. Kh2) 42... Kxg6 $18 {[%emt 0:00:05]} 43. f3 {[%emt 0:00:31]} Ne6 {[%emt 0:00:00]} 44. Kf2 {[%emt 0:00:00]} Rd7 {[%emt 0:00:00]} 45. Ke2 {[%emt 0:00:00]} Rd5 {[%emt 0:00:00]} 46. Ra4 {[%emt 0:00:00]} Rc5 {[%emt 0:00:00]} 47. Rc4 $2 {[%emt 0:00:00]} (47. Rxa7 Rc2+ 48. Kf1 Rxb2 $19) (47. Kf1 $16) 47... Ra5 $2 {[%emt 0:00:00]} (47... Rd5 $1 $11 48. Re4 Rd6) 48. a4 $18 {[%emt 0:00:00]} Rg5 {[%emt 0:00:00]} 49. Kf1 {[%emt 0:00:00]} Rd5 {[%emt 0:00:00]} 50. Bc3 {[%emt 0:00:00]} Nc5 {[%emt 0:00:00]} (50... a5 $142 51. Ke2 Nc5 52. Bxa5 (52. Rxf4 Nxb3 53. Rf6+ Kh7 $18) 52... Nxb3) 51. Rd4 $18 {[%emt 0:00:00]} Rf5 {[%emt 0:00:00]} 52. Rb4 {[%emt 0:00:00]} ({Much less strong is} 52. Rd6+ Kh7 53. a5 Nxb3 54. Rd7+ Kg6 55. Rg7+ (55. Rxa7 Rc5 $18) 55... Kh5 56. Rxa7 Rc5 $18) 52... Rh5 {[%emt 0:00:00]} 53. Rxf4 {[%emt 0:00:00]} Rh1+ {[%emt 0:00:00]} 54. Ke2 {[%emt 0:00:00]} Nxb3 {[%emt 0:00:00]} 55. Rf6+ {[%emt 0:00:00]} Kg5 {[%emt 0:00:00]} 56. Ra6 {[%emt 0:00:00]} Rc1 {[%emt 0:00:00]} 57. Bg7 {[%emt 0:00:00]} Rc2+ {[%emt 0:00:00]} 58. Kf1 {[%emt 0:00:00]} h5 {[%emt 0:02:51]} 59. Rxa7 {[%emt 0:00:00]} h4 {[%emt 0:00:05]} (59... Kg6 {keeps fighting.} 60. Bh8 Nd2+ 61. Ke2 Nb3+ 62. Ke3 Ra2) 60. a5 {[%emt 0:00:00]} Rc1+ {[%emt 0:03:00]} 61. Kf2 {[%emt 0:00:00]} Rc2+ {[%emt 0:00:28]} 62. Kg1 {[%emt 0:02:06]} Nc1 {[%emt 0:01:38]} 63. Be5 {[%emt 0:02:53]} Nd3 {[%emt 0:01:38]} 64. Bd4 {[%emt 0:01:40]} (64. Rg7+ Kf5 $18) 64... Nf4 {[%emt 0:01:48]} 65. Rg7+ {[%emt 0:01:11]} Kh6 {[%emt 0:00:41]} 66. Rg4 {[%emt 0:00:28]} Ne2+ {[%emt 0:00:10]} 67. Kh2 {[%emt 0:00:07]} Ra2 {[%emt 0:00:20]} 68. Be3+ {[%emt 0:00:47]} Kh5 {[%emt 0:00:21]} (68... Kh7 $18 69. Rxh4+ Kg8) 69. a6 {[%emt 0:00:40]} h3 {[%emt 0:00:50]} 70. Kxh3 {[%emt 0:00:08]} (70. gxh3 Nc3+ 71. Rg2 Rxa6 72. Rg5+ Kh4 $18) 70... Ng1+ {[%emt 0:00:36]} 71. Bxg1 {[%emt 0:00:12]} Ra1 {[%emt 0:00:04]} 72. a7 {[%emt 0:00:20]} 1-0

[Event "Sardinia World Festival-A 2024"]
[Site "Orosei"]
[Date "2024.04.30"]
[Round "4.32"]
[White "Tsiapko, Andrii"]
[Black "Ibrayev, Nurlan"]
[Result "0-1"]
[ECO "A70"]
[WhiteElo "2048"]
[BlackElo "2368"]
[Annotator "TA"]
[PlyCount "120"]
[EventDate "2024.04.26"]
[EventType "swiss"]
[EventCountry "ITA"]
[SourceTitle "playchess.com"]
[Source "ChessBase"]
[SourceQuality "1"]
[TimeControl "40/5400+30:1800+30"]

{[%evp 39,120,33,77,65,66,28,75,29,79,16,18,16,14,12,14,12,48,2,18,0,0,-11,-16,-12,-9,-16,-10,-8,-14,-18,-29,-86,-76,-75,-63,-131,-79,-159,-164,-181,-172,-227,-231,-447,-446,-440,-425,-505,-506,-498,-491,-599,0,-393,-369,-602,-585,-524,-456,-621,-610,-580,-404,-388,-134,-98,-27,-60,-27,-446,-403,-368,-345,-29978,-29979,-29979,-29980,-29980,-29981,-29995,-29995,-29995,-29996]} 1. d4 {[%emt 0:07:21]} Nf6 {[%emt 0:00:43]} 2. c4 {[%emt 0:00:47]} e6 {[%emt 0:00:20]} 3. Nf3 {[%emt 0:00:24]} c5 {[%emt 0:00:36]} 4. d5 {[%emt 0:01:05]} d6 {[%emt 0:00:23]} 5. Nc3 {[%emt 0:00:41]} exd5 {[%emt 0:00:05]} 6. cxd5 {[%emt 0:00:04]} g6 {[%emt 0:00:07]} 7. h3 {[%emt 0:00:50]} Bg7 {[%emt 0:00:22]} 8. e4 {[%emt 0:00:55]} O-O {[%emt 0:00:08]} 9. Bd3 {[%emt 0:00:33]} a6 {[%emt 0:12:13]} 10. a4 {[%emt 0:00:46]} Re8 {[%emt 0:00:05]} 11. O-O {[%emt 0:02:09]} Nh5 {[%emt 0:00:03] A70: Modern Benoni: 6 e4 g6 7 Nf3.} 12. Bg5 {[%emt 0:07:11]} Bf6 {[%emt 0:01:28]} 13. Bh6 {[%emt 0:02:35]} Nd7 {[%emt 0:01:39]} 14. Re1 {[%emt 0:03:06]} Rb8 {[%emt 0:02:28] has lost popularity (14...Ne5).} 15. a5 {[%emt 0:16:25]} b6 {[%emt 0:15:36]} 16. axb6 {[%emt 0:01:41]} Rxb6 {[%emt 0:00:08]} 17. Qc1 $146 {[%emt 0:10:01]} ({Predecessor:} 17. Ra2 Ne5 18. Be2 Rb4 19. Nxe5 Rxe5 20. Bxa6 Bxh3 21. gxh3 Bg5 22. Bxg5 Rxg5+ 23. Kf1 {1-0 Mamedyarov,S (2738)-Andreikin,D (2729) ChessKid Cup Div 2 L rapid 2023 (5.2)}) 17... Ne5 {[%emt 0:06:49]} 18. Be2 {[%emt 0:02:18]} Nxf3+ {[%emt 0:01:04]} 19. Bxf3 {[%emt 0:00:37]} Ng7 {[%emt 0:00:11]} 20. Bf4 {[%emt 0:10:40]} Be5 {[%emt 0:05:05]} 21. Bxe5 {[%emt 0:02:54]} Rxe5 {[%emt 0:00:14]} 22. Be2 {[%emt 0:05:43]} g5 {[%emt 0:04:23]} (22... Qh4 $11 {was preferrable.}) 23. Ra2 {[%emt 0:06:42]} (23. Bf1 $16) 23... Ne8 {[%emt 0:07:36]} (23... Qe7 $11) 24. f4 {[%emt 0:01:29]} (24. Bc4 $16) 24... gxf4 $11 {[%emt 0:00:06]} 25. Qxf4 {[%emt 0:00:02]} Qf6 {[%emt 0:10:49]} 26. Rf1 {[%emt 0:01:25]} Qxf4 {[%emt 0:02:32]} (26... Kg7 {feels hotter.} 27. Bc4 Qxf4 28. Rxf4 f5) 27. Rxf4 {[%emt 0:00:02]} Re7 {[%emt 0:01:59]} 28. g4 {[%emt 0:05:34]} (28. Bc4 $14) 28... Kg7 {[%emt 0:02:58]} 29. Kf1 {[%emt 0:05:53]} Nf6 {[%emt 0:02:26]} 30. Ke1 {[%emt 0:00:22]} Rb4 {[%emt 0:07:46]} 31. Bxa6 {[%emt 0:00:50]} Nxe4 {[%emt 0:01:02]} 32. Nxe4 {[%emt 0:00:18]} Rexe4+ {[%emt 0:00:19]} (32... Rbxe4+ 33. Rxe4 Rxe4+ 34. Kf2 $17) 33. Rxe4 {[%emt 0:00:01]} Rxe4+ {[%emt 0:00:02]} 34. Kf2 {[%emt 0:00:11]} Bd7 {[%emt 0:01:12]} 35. Bb7 {[%emt 0:02:36]} (35. b3 $11 {keeps the balance.}) 35... Bb5 $1 $17 {[%emt 0:01:27]} 36. Ba6 {[%emt 0:01:44]} Ba4 $1 {[%emt 0:07:53]} 37. Bb7 {[%emt 0:02:02]} (37. Ra3 $15) 37... Rd4 {[%emt 0:00:46]} (37... Kf6 $142 {...Bc2 is the strong threat.} 38. Bc6 Bc2) 38. Ra3 {[%emt 0:00:48]} (38. Ke3 $142) 38... Rb4 $17 {[%emt 0:01:10]} 39. Ke3 {[%emt 0:00:38]} Bc2 {[%emt 0:05:08]} (39... Rxb2 40. Rxa4 Rxb7 41. Ra6 $11) 40. Bc8 {[%emt 0:00:33]} (40. Ba8 $142) 40... Rb8 $19 {[%emt 0:00:17]} (40... Rxb2 41. Ra6 $17) 41. Bf5 $2 {[%emt 0:04:19]} (41. Ba6) 41... Bxf5 $19 {[%emt 0:01:06]} (41... Rxb2 42. Bxc2 Rxc2 43. Ra6 $11) 42. gxf5 {[%emt 0:01:02]} Kf6 {[%emt 0:00:02]} (42... Rxb2 43. Ra6 $15) 43. Ra7 {[%emt 0:08:39]} Rxb2 {[%emt 0:01:33]} 44. Rd7 {[%emt 0:00:36]} Ke5 {[%emt 0:02:30]} (44... Kxf5 45. Rxd6 h5 46. Rc6 $11) 45. Re7+ {[%emt 0:04:36]} Kf6 {[%emt 0:01:44]} 46. Rd7 {[%emt 0:00:12]} Rb6 {[%emt 0:03:45]} (46... Kxf5 47. Rxd6 Rb3+ 48. Kd2 $15) 47. Ke4 $2 {[%emt 0:03:56]} (47. Kd3) 47... h5 $19 {[%emt 0:00:25]} 48. Kf4 {[%emt 0:01:52]} Rb4+ {[%emt 0:00:33]} 49. Ke3 {[%emt 0:01:40]} Ke5 {[%emt 0:00:38]} (49... Kxf5 50. Rxd6 Re4+ 51. Kd3 $15) 50. Rxf7 {[%emt 0:01:22]} Rb3+ {[%emt 0:00:34]} (50... Kxd5 51. Re7 $11) 51. Ke2 {[%emt 0:00:30]} Kxd5 $2 {[%emt 0:11:47]} (51... Rxh3 $19 {and Black stays clearly on top.} 52. f6 Rh2+ (52... Kxd5 53. Re7 $11) 53. Ke3 Rh4 (53... Kxd5 54. Re7 $11) 54. Re7+ Kxf6 55. Re6+ Kf5 56. Rxd6 Ke5) 52. Re7 $17 {[%emt 0:01:45]} Rg3 {[%emt 0:00:57]} (52... Rxh3 $6 53. f6 Rh4 54. Kf3 $11) ({Black should play} 52... Kc6 $17 {[%cal Ob3b8]} 53. f6 Rb8 (53... Rxh3 $2 54. f7 $18)) 53. h4 $11 {[%emt 0:02:51]} c4 {[%emt 0:02:28]} 54. Kf2 $2 {[%emt 0:00:47][%mdl 8192]} (54. f6 $11 {and White has nothing to worry.} Rg4 55. Ke3 (55. f7 Rf4 $11)) 54... Rg4 $19 {[%emt 0:00:46]} 55. Ke3 {[%emt 0:01:30] [#]} c3 $1 {[%emt 0:05:54]} (55... Rxh4 56. f6 Rh1 57. Ke2 Rh2+ 58. Ke3 Rh3+ 59. Kf2 $11) 56. f6 $2 {[%emt 0:02:08] [#]} (56. Kd3 $19 Rg3+ (56... Rxh4 $2 57. Kxc3 Rf4 58. Kd2 $19) 57. Ke2) 56... Rc4 $1 {[%emt 0:01:33]} (56... Rxh4 57. f7 c2 58. Rc7 Re4+ (58... Rc4 59. Rxc4 Kxc4 60. Kd2 c1=R 61. Kxc1 Kd5 62. f8=Q h4 63. Qh6) 59. Kf3 $11) 57. f7 {[%emt 0:00:45]} c2 $1 {[%emt 0:00:08]} (57... Rxh4 58. f8=Q (58. f8=R Rh3+ 59. Rf3 Rh1 $18) 58... Rh3+ 59. Ke2 Rh2+ 60. Kd3 Rh3+ 61. Kc2 (61. Re3 Rxe3+ 62. Kxe3 Ke6 63. Qh6+ Kf5 64. Qxh5+ Ke6 65. Kd4 c2 66. Qg6+ Ke7) 61... Rh4 62. Qf5+ (62. Kxc3 Rc4+ 63. Kb3 Rg4 64. Qa8+ Kd4 65. Qc6 Rg3+ 66. Kb4 Rb3+ 67. Kxb3 h4 68. Qxd6#) 62... Kc4 63. Qd3+ Kc5 64. Rc7+ (64. Kxc3 d5 65. Re5 Kb6 66. Rxd5 Kc7 67. Rc5+ Kb7 68. Qb5+ Ka7 69. Rc7+ Ka8 70. Qe8#) 64... Kb4 65. Qxd6+ (65. Qxc3+ Kb5 66. Qc6+ Ka5 67. Ra7+ Kb4 68. Ra4#) 65... Ka4 66. Qc6+ (66. Kxc3 Rh3+ 67. Kc2 Rh2+ 68. Qxh2 Kb4 69. Qd6+ Ka4 70. Qa6+ Kb4 71. Rc4#) 66... Kb4 67. Qc5+ Ka4 68. Ra7#) 58. f8=Q {[%emt 0:00:28]} c1=Q+ {[%emt 0:00:04]} (58... c1=B+ 59. Ke2 Re4+ 60. Rxe4 Kxe4 61. Qf3+ (61. Qxd6 Bf4 62. Qd3+ Ke5 63. Qg6 Kd5 64. Qd3+ Ke6 65. Qg6+ Kd5 66. Qd3+ Ke6) 61... Kd4 62. Qd3+ (62. Qxh5 Bf4 $18) 62... Ke5 63. Qc3+ Ke6 64. Qxc1) 59. Kd3 {[%emt 0:00:35]} Rc3+ {[%emt 0:00:50]} ({Not} 59... Rxh4 60. Qg8+ Kc5 61. Rc7+ Kb4 62. Rb7+ (62. Rxc1 Rh3+ 63. Kd4 Rh4+ 64. Kd5 Rh2 65. Rc4+ Ka3 66. Qg3+ Kb2 67. Qxh2+ Ka3 68. Qc2 h4 69. Ra4#) 62... Kc5 63. Qc8+ (63. Rc7+ Kb4 64. Rb7+ Kc5 65. Qc8+ Kd5 66. Qf5+ Kc6 67. Qb5#) 63... Kd5 64. Qf5+ Kc6 65. Qb5#) 60. Ke2 {[%emt 0:00:15]} Rc2+ {[%emt 0:00:06]} 0-1

[Event "Sardinia World Festival-A 2024"]
[Site "Orosei"]
[Date "2024.04.30"]
[Round "4.33"]
[White "Dalaud, Dorian"]
[Black "Samunenkov, Ihor"]
[Result "1/2-1/2"]
[ECO "B11"]
[WhiteElo "2307"]
[BlackElo "2548"]
[Annotator "TA"]
[PlyCount "170"]
[EventDate "2024.04.26"]
[EventType "swiss"]
[EventCountry "ITA"]
[SourceTitle "playchess.com"]
[Source "ChessBase"]
[SourceQuality "1"]
[TimeControl "40/5400+30:1800+30"]

{[%evp 54,170,-110,-111,-105,-120,-119,-112,-117,-117,-117,-117,-117,-118,-88,-119,-112,-127,-127,-127,-127,-127,-127,-127,-127,-127,-127,-127,-127,-127,-127,-127,-127,-127,-124,-127,-127,-127,-127,-127,-127,-127,-127,-127,-127,-127,-127,-127,-127,-127,-127,-120,-112,-120,0,-127,-127,-127,0,-127,-127,-127,-127,-127,0,-127,-13,-13,-13,-13,-13,-58,-13,-13,-13,-58,-58,-64,0,-13,-22,-22,0,-62,0,0,0,-104,0,0,0,-27,0,0,0,0,0,0,0,-13,0,0,0,0,0,0,0,0,27,0,0,0,25,14,20,0,16,0,32]} 1. e4 {[%emt 0:04:09]} c6 {[%emt 0:00:17]} 2. Nf3 {[%emt 0:00:20]} d5 {[%emt 0:00:22]} 3. Nc3 {[%emt 0:00:09]} dxe4 {[%emt 0:03:32]} 4. Nxe4 {[%emt 0:00:08]} Nf6 {[%emt 0:00:09]} 5. Qe2 {[%emt 0:00:34]} Na6 {[%emt 0:01:13]} 6. a3 {[%emt 0:01:27] B11: Caro-Kann: Two Knights Variation.} Nc7 {[%emt 0:09:00]} 7. d4 $146 {[%emt 0:02:25]} ({Predecessor:} 7. d3 Ne6 8. g3 g6 9. Bg2 Bg7 10. O-O Nxe4 11. Qxe4 O-O 12. Re1 a5 13. Rb1 Re8 14. Bd2 Nd4 15. Nxd4 Bxd4 16. Bc3 Bg7 {½-½ Reimann,S (2342)-Vetoshko,V (2499) Bayern-chI Bank Hofmann 26th 2023 (5)}) 7... Nxe4 {[%emt 0:03:44]} 8. Qxe4 {[%emt 0:00:07]} Qd5 {[%emt 0:00:14]} 9. Qxd5 {[%emt 0:04:48]} Nxd5 {[%emt 0:06:49]} 10. Bd3 {[%emt 0:10:06]} Bg4 {[%emt 0:16:40]} 11. Ng5 {[%emt 0:23:08]} e6 {[%emt 0:04:31]} 12. Ne4 {[%emt 0:04:25]} Bf5 {[%emt 0:03:35]} 13. O-O {[%emt 0:00:47]} O-O-O {[%emt 0:03:05]} 14. Re1 {[%emt 0:02:35]} h6 {[%emt 0:04:45]} 15. Bf1 {[%emt 0:02:56]} g5 {[%emt 0:05:05]} 16. g3 {[%emt 0:02:36]} Be7 {[%emt 0:06:08]} 17. Bg2 {[%emt 0:01:00]} Kc7 {[%emt 0:01:54]} 18. Bd2 {[%emt 0:05:26]} Rd7 {[%emt 0:09:31]} 19. Rac1 {[%emt 0:09:50]} Kb8 {[%emt 0:05:23]} 20. c4 {[%emt 0:04:55]} Nb6 {[%emt 0:01:22]} 21. c5 {[%emt 0:05:52]} Nd5 {[%emt 0:03:19]} 22. Nd6 {[%emt 0:00:25]} Bxd6 {[%emt 0:00:48]} 23. cxd6 {[%emt 0:00:55]} Rxd6 {[%emt 0:02:38]} 24. Bxd5 {[%emt 0:00:46]} Rxd5 {[%emt 0:00:08]} 25. f3 {[%emt 0:00:32]} Rh7 {[%emt 0:03:07]} 26. Bc3 {[%emt 0:00:30]} h5 {[%emt 0:00:54]} 27. Re5 {[%emt 0:00:23]} Rd8 {[%emt 0:00:34]} 28. Rf1 {[%emt 0:04:56]} Rg8 {[%emt 0:01:06]} 29. Bd2 {[%emt 0:00:55]} f6 {[%emt 0:00:59]} 30. Ree1 {[%emt 0:01:04]} Rd7 {[%emt 0:01:37]} 31. Bc3 {[%emt 0:00:42]} Rg6 {[%emt 0:00:32]} 32. Re3 {[%emt 0:00:55]} Rd5 {[%emt 0:00:44]} 33. Rfe1 {[%emt 0:00:49]} a5 {[%emt 0:01:10]} 34. Kg2 {[%emt 0:00:29]} g4 {[%emt 0:00:30]} 35. Rf1 {[%emt 0:01:20]} a4 {[%emt 0:00:43]} 36. Rf2 {[%emt 0:00:42]} Rg7 {[%emt 0:00:52]} 37. Kg1 {[%emt 0:01:36]} b6 {[%emt 0:00:26]} 38. Kg2 {[%emt 0:01:07]} Kb7 {[%emt 0:00:27]} 39. fxg4 {[%emt 0:02:47]} hxg4 {[%emt 0:00:24]} 40. Rf4 {[%emt 0:00:08]} Rg6 {[%emt 0:01:21]} 41. Re1 {[%emt 0:30:58]} Ka6 {[%emt 0:09:08]} 42. Re2 {[%emt 0:00:00]} Kb5 {[%emt 0:05:17]} 43. Re1 {[%emt 0:00:00]} Rd7 {[%emt 0:05:04]} 44. Re2 {[%emt 0:00:00]} Ka6 {[%emt 0:01:53]} 45. Kg1 {[%emt 0:00:00]} Kb7 {[%emt 0:00:21]} 46. Re1 {[%emt 0:00:00]} Kc7 {[%emt 0:00:38]} 47. Re2 {[%emt 0:00:00]} Rd5 {[%emt 0:00:24]} 48. Re1 {[%emt 0:00:00]} Kd7 {[%emt 0:00:16]} 49. Ref1 {[%emt 0:00:00]} Ke7 {[%emt 0:00:53]} 50. Bb4+ {[%emt 0:00:00]} Kd8 {[%emt 0:02:21]} 51. Re1 {[%emt 0:00:00]} Rd7 {[%emt 0:02:09]} 52. Re3 {[%emt 0:00:00]} Kc7 {[%emt 0:02:14]} 53. Bc3 {[%emt 0:00:00]} Rd5 {[%emt 0:01:24]} 54. Re1 $1 {[%emt 0:00:00]} Rg7 {[%emt 0:00:26]} 55. Re3 {[%emt 0:00:00]} Kb7 {[%emt 0:02:11]} (55... Rh7 $17 56. Re2 Rh8) 56. Re1 {[%emt 0:00:00]} (56. Kg2 $1 $11) 56... Ka6 {[%emt 0:00:49]} 57. Re3 {[%emt 0:00:00]} Kb5 {[%emt 0:00:08]} 58. Re1 {[%emt 0:00:00]} Rg6 {[%emt 0:00:42]} (58... Rg5 $17 59. Ref1 Ka6) 59. Re3 {[%emt 0:00:00]} (59. Kg2 $1 $11 {was the only way to keep the balance.}) 59... c5 {[%emt 0:00:41]} (59... Ka6 $17 60. Re1 Rg8) 60. dxc5 $11 {[%emt 0:00:00]} bxc5 {[%emt 0:00:08]} 61. Re1 {[%emt 0:00:00]} Rd3 {[%emt 0:01:24]} 62. Re2 {[%emt 0:00:00]} Rh6 {[%emt 0:01:49]} 63. Ref2 {[%emt 0:01:21]} Rd7 {[%emt 0:01:03]} 64. Bd2 {[%emt 0:03:07]} Rh5 {[%emt 0:00:36]} 65. Bc3 $1 {[%emt 0:00:07]} Rh6 {[%emt 0:00:41]} (65... Rd1+ $15 66. Rf1 Rxf1+ 67. Rxf1 e5) 66. Bd2 $11 {[%emt 0:00:06]} Rg6 {[%emt 0:00:08]} 67. Bc3 {[%emt 0:09:37]} Rd3 {[%emt 0:00:32]} 68. Re2 {[%emt 0:00:00]} c4 {[%emt 0:00:27]} (68... Rd1+ $15 69. Kg2 Rc1) 69. Re1 $11 {[%emt 0:00:00]} Kc5 {[%emt 0:00:25]} 70. Re2 {[%emt 0:00:00] [#]} (70. Bb4+ $11 Kd5 71. Bc3) 70... Kd5 {[%emt 0:00:33]} (70... Rd1+ $1 $17 71. Kg2 Kd5) 71. Re1 $11 {[%emt 0:00:00]} Rh6 {[%emt 0:00:14]} 72. Ref1 {[%emt 0:00:00]} Kc5 {[%emt 0:00:34]} 73. R1f2 {[%emt 0:00:00]} Kb5 {[%emt 0:00:40]} 74. Rf1 {[%emt 0:00:00]} Rd7 {[%emt 0:00:16]} 75. R1f2 {[%emt 0:00:00]} Rf7 {[%emt 0:01:00]} 76. Bd2 {[%emt 0:01:31]} Rh8 {[%emt 0:00:31]} 77. Bc3 {[%emt 0:00:27]} Rg8 {[%emt 0:00:40]} 78. Rf1 {[%emt 0:00:49]} Rc8 {[%emt 0:00:38]} 79. R1f2 {[%emt 0:01:53]} Rc6 {[%emt 0:00:07]} 80. Rd2 {[%emt 0:00:26]} Kb6 {[%emt 0:00:22]} 81. Rdf2 {[%emt 0:00:16]} Kb7 {[%emt 0:00:58]} 82. Rd2 {[%emt 0:00:13]} Kc8 {[%emt 0:00:18]} 83. Rdd4 {[%emt 0:01:21]} Rfc7 {[%emt 0:00:13]} 84. Rd2 {[%emt 0:00:11]} Rf7 {[%emt 0:00:56]} 85. Rdd4 {[%emt 0:00:05]} Rfc7 {[%emt 0:00:25]} 1/2-1/2